bitfinex/quotes_BTCUSD_20241107
["timestamp","ask_amount","ask_price","bid_price","bid_amount"]
[1731018667799,0.023,75691.0,75678.0,0.00264238]
[1731018668020,0.077681,75692.0,75681.0,0.19868997]
[1731018668256,0.077681,75692.0,75682.0,0.1]
[1731018668464,0.023,75694.0,75682.0,0.1]
[1731018668910,0.09895891,75692.0,75682.0,0.1]
[1731018669349,0.023,75694.0,75682.0,0.1]
[1731018669580,0.0203383,75697.0,75682.0,0.1]
[1731018669581,0.0203383,75697.0,75690.0,0.1]
[1731018669836,0.0203383,75697.0,75685.0,0.00264208]
[1731018670038,0.09895891,75696.0,75685.0,0.00264208]
[1731018670255,0.09895891,75696.0,75689.0,0.19868997]
[1731018670475,0.0203383,75697.0,75690.0,0.10264208]
[1731018670726,0.01589267,75697.0,75690.0,0.10264208]
[1731018671406,0.01589267,75697.0,75692.0,0.1]
[1731018671659,0.023,75706.0,75693.0,0.00264196]
[1731018671970,0.09895891,75702.0,75693.0,0.00264196]
[1731018672325,0.023,75706.0,75693.0,0.00264196]
[1731018672326,0.12195891,75706.0,75693.0,0.00264196]
[1731018673440,0.09895891,75708.0,75693.0,0.005]
[1731018673647,0.09895891,75708.0,75693.0,0.01783015]
[1731018673853,0.09895891,75708.0,75693.0,0.005]
[1731018674498,0.09895891,75708.0,75694.0,0.00264177]
[1731018674712,0.09895891,75708.0,75694.0,0.00764177]
[1731018674943,0.000749,75710.0,75699.0,0.1]
[1731018675153,0.000749,75710.0,75699.0,0.1076416]
[1731018675350,0.000749,75710.0,75699.0,0.36808262]
[1731018675564,0.09895891,75719.0,75701.0,0.005]
[1731018675839,0.09895891,75715.0,75701.0,0.005]
[1731018676212,8e-05,75720.0,75702.0,0.00264148]
[1731018676412,0.09895891,75717.0,75704.0,0.005]
[1731018676614,0.09895891,75713.0,75704.0,0.005]
[1731018677037,0.09895891,75713.0,75703.0,0.1]
[1731018677478,0.15393349,75719.0,75702.0,0.005]
[1731018678360,0.14893349,75719.0,75702.0,0.005]
[1731018678986,0.023,75718.0,75701.0,0.11747778]
[1731018679192,0.001664,75713.0,75701.0,0.11747778]
[1731018679343,0.001664,75713.0,75710.0,0.1]
[1731018680569,0.001664,75713.0,75704.0,0.005]
[1731018680967,0.14893349,75719.0,75705.0,0.00264136]
[1731018681556,0.14893349,75719.0,75704.0,0.005]
[1731018681761,0.14893349,75719.0,75709.0,0.1]
[1731018681970,8e-05,75720.0,75710.0,0.00264136]
[1731018683001,0.023,75713.0,75694.0,0.0879]
[1731018683148,0.15393349,75709.0,75708.0,0.19868997]
[1731018683469,0.15393349,75709.0,75694.0,0.0879]
[1731018683902,0.023,75711.0,75694.0,0.0879]
[1731018684361,0.15393349,75708.0,75700.0,0.01264933]
[1731018684638,0.15524102,75707.0,75700.0,0.01264933]
[1731018684826,0.15393349,75702.0,75689.0,0.19868997]
[1731018685049,0.15393349,75702.0,75699.0,0.19868997]
[1731018685263,0.023,75699.0,75676.0,0.0831]
[1731018685476,0.023,75697.0,75690.0,0.19868997]
[1731018685670,0.15393349,75691.0,75673.0,0.19868997]
[1731018685902,0.19309885,75696.0,75673.0,0.19868997]
[1731018685903,0.15393349,75685.0,75673.0,0.19868997]
[1731018686129,0.023,75684.0,75681.0,0.21105517]
[1731018686327,0.15524102,75684.0,75681.0,0.21105517]
[1731018686551,0.15524102,75684.0,75681.0,0.0123652]
[1731018687016,0.15524102,75684.0,75673.0,0.19868997]
[1731018687252,0.15524102,75684.0,75674.0,0.1]
[1731018687459,0.023,75676.0,75663.0,0.19868997]
[1731018687679,0.023,75676.0,75674.0,0.19868997]
[1731018687899,0.023,75676.0,75663.0,0.21140922]
[1731018689630,0.023,75676.0,75664.0,0.1]
[1731018692437,0.0477,75679.0,75673.0,0.1]
[1731018692438,0.023,75678.0,75673.0,0.1]
[1731018693500,0.0225,75678.0,75664.0,0.1]
[1731018693715,0.0225,75678.0,75672.0,0.1]
[1731018693951,0.0225,75678.0,75664.0,0.1]
[1731018702930,0.023,75676.0,75664.0,0.1]
[1731018704093,0.023,75676.0,75664.0,0.100832]
[1731018714383,0.023,75674.0,75664.0,0.100832]
[1731018715010,0.023,75676.0,75664.0,0.100832]
[1731018715202,0.023,75674.0,75664.0,0.100832]
[1731018715414,0.01223032,75673.0,75664.0,0.100832]
[1731018715612,0.023,75671.0,75664.0,0.100832]
[1731018715822,0.023,75676.0,75664.0,0.100832]
[1731018716015,0.023,75674.0,75664.0,0.100832]
[1731018716221,0.023,75672.0,75664.0,0.100832]
[1731018716482,0.023,75674.0,75664.0,0.100832]
[1731018716683,0.01223729,75673.0,75664.0,0.100832]
[1731018716886,0.023,75674.0,75664.0,0.100832]
[1731018717039,0.023,75672.0,75664.0,0.100832]
[1731018717427,0.023,75676.0,75664.0,0.100832]
[1731018717640,0.023,75674.0,75664.0,0.100832]
[1731018717861,0.023,75672.0,75664.0,0.100832]
[1731018718394,0.023,75676.0,75664.0,0.100832]
[1731018718616,0.023,75674.0,75664.0,0.100832]
[1731018718820,0.023,75672.0,75664.0,0.100832]
[1731018719249,0.023,75676.0,75664.0,0.100832]
[1731018719435,0.023,75674.0,75664.0,0.100832]
[1731018719640,0.01223829,75673.0,75664.0,0.100832]
[1731018719810,0.023,75676.0,75664.0,0.100832]
[1731018720008,0.023,75674.0,75664.0,0.100832]
[1731018720221,0.01223822,75673.0,75664.0,0.100832]
[1731018720491,0.023,75674.0,75665.0,0.0264]
[1731018720775,0.023,75674.0,75664.0,0.100832]
[1731018720922,0.023,75672.0,75664.0,0.100832]
[1731018721332,0.023,75676.0,75664.0,0.100832]
[1731018721536,0.023,75674.0,75664.0,0.100832]
[1731018721740,0.023,75676.0,75664.0,0.100832]
[1731018721741,0.01224072,75673.0,75664.0,0.100832]
[1731018721952,0.023,75676.0,75664.0,0.100832]
[1731018721953,0.03524072,75672.0,75664.0,0.100832]
[1731018722173,0.023,75676.0,75664.0,0.100832]
[1731018722372,0.01224297,75671.0,75664.0,0.100832]
[1731018722572,0.023,75674.0,75664.0,0.100832]
[1731018722862,0.023,75672.0,75664.0,0.100832]
[1731018723432,0.023,75676.0,75664.0,0.100832]
[1731018723637,0.02448604,75675.0,75664.0,0.100832]
[1731018723836,0.01224302,75674.0,75664.0,0.100832]
[1731018724055,0.01224302,75673.0,75664.0,0.100832]
[1731018724263,0.01224302,75672.0,75664.0,0.100832]
[1731018724502,0.023,75671.0,75664.0,0.100832]
[1731018724714,0.023,75676.0,75664.0,0.100832]
[1731018725036,0.023,75674.0,75664.0,0.100832]
[1731018725240,0.01224335,75673.0,75664.0,0.100832]
[1731018725440,0.023,75671.0,75664.0,0.100832]
[1731018725630,0.023,75674.0,75664.0,0.100832]
[1731018725802,0.023,75672.0,75664.0,0.100832]
[1731018726007,0.023,75670.0,75664.0,0.100832]
[1731018726213,0.023,75672.0,75664.0,0.100832]
[1731018726578,0.023,75670.0,75664.0,0.100832]
[1731018726780,0.023,75676.0,75664.0,0.100832]
[1731018726964,0.023,75674.0,75664.0,0.100832]
[1731018727175,0.01224508,75673.0,75664.0,0.100832]
[1731018727397,0.023,75676.0,75664.0,0.100832]
[1731018727398,0.023,75671.0,75664.0,0.100832]
[1731018728066,0.0817,75677.0,75664.0,0.100832]
[1731018728067,0.023,75676.0,75664.0,0.100832]
[1731018728293,0.023,75674.0,75664.0,0.100832]
[1731018728522,0.023,75672.0,75664.0,0.100832]
[1731018728723,0.023,75674.0,75664.0,0.100832]
[1731018728921,0.01224477,75673.0,75664.0,0.100832]
[1731018729234,0.023,75676.0,75664.0,0.100832]
[1731018729443,0.023,75674.0,75664.0,0.100832]
[1731018729631,0.023,75672.0,75664.0,0.100832]
[1731018730279,0.023,75676.0,75664.0,0.100832]
[1731018730486,0.023,75674.0,75664.0,0.100832]
[1731018730701,0.023,75672.0,75664.0,0.100832]
[1731018731348,0.06206918,75675.0,75665.0,0.0755]
[1731018731555,0.023,75673.0,75665.0,0.0755]
[1731018731804,0.06206918,75675.0,75665.0,0.0755]
[1731018732004,0.023,75673.0,75665.0,0.0755]
[1731018732382,0.023,75674.0,75665.0,0.0755]
[1731018732592,0.01224522,75673.0,75665.0,0.0755]
[1731018732816,0.023,75674.0,75665.0,0.0755]
[1731018733016,0.023,75672.0,75665.0,0.0755]
[1731018733589,0.023,75674.0,75665.0,0.0755]
[1731018733947,0.023,75672.0,75665.0,0.0755]
[1731018734370,0.023,75674.0,75665.0,0.0755]
[1731018734716,0.023,75672.0,75665.0,0.0755]
[1731018734870,0.03906918,75675.0,75665.0,0.0755]
[1731018735076,0.023,75673.0,75665.0,0.0755]
[1731018735281,0.01224519,75672.0,75665.0,0.0755]
[1731018735446,0.023,75671.0,75665.0,0.0755]
[1731018735862,0.023,75675.0,75665.0,0.0755]
[1731018736089,0.023,75673.0,75665.0,0.0755]
[1731018736303,0.0122452,75672.0,75671.0,0.29868997]
[1731018736662,0.0773,75689.0,75671.0,0.29868997]
[1731018736663,0.19868997,75695.0,75674.0,0.1]
[1731018736759,0.02449265,75694.0,75675.0,0.13724102]
[1731018736969,0.02449265,75693.0,75681.0,0.09892163]
[1731018737167,0.01224634,75692.0,75682.0,0.00264223]
[1731018737379,0.20483837,75705.0,75680.0,0.19892163]
[1731018737380,0.1267,75705.0,75680.0,0.19892163]
[1731018737743,0.0244892,75704.0,75686.0,0.0768]
[1731018737995,0.0244892,75703.0,75686.0,0.0768]
[1731018738221,0.0122446,75702.0,75688.0,0.1]
[1731018738435,0.17622163,75705.0,75688.0,0.1]
[1731018738867,0.0773,75705.0,75688.0,0.1]
[1731018739537,0.023,75709.0,75691.0,0.0479]
[1731018739793,0.023,75707.0,75691.0,0.0479]
[1731018740048,0.023,75705.0,75697.0,0.1]
[1731018743302,0.023,75712.0,75697.0,0.1]
[1731018743528,0.13224102,75711.0,75697.0,0.1]
[1731018743685,0.023,75710.0,75697.0,0.1]
[1731018743889,0.15524102,75710.0,75697.0,0.1]
[1731018744100,0.15524102,75710.0,75697.0,0.11239676]
[1731018745537,0.09892163,75709.0,75697.0,0.11239676]
[1731018745743,0.023,75708.0,75697.0,0.11239676]
[1731018747374,0.0229,75708.0,75697.0,0.11239676]
[1731018747570,0.23106265,75710.0,75697.0,0.11239676]
[1731018747793,0.078964,75713.0,75697.0,0.11239676]
[1731018747794,0.001664,75713.0,75705.0,0.1]
[1731018749001,0.001664,75713.0,75703.0,0.0475]
[1731018749201,0.001664,75713.0,75705.0,0.1]
[1731018750017,0.023,75712.0,75705.0,0.1]
[1731018751659,0.001664,75713.0,75705.0,0.1]
[1731018754115,8e-05,75720.0,75705.0,0.100832]
[1731018756317,8e-05,75720.0,75706.0,0.0826]
[1731018761254,8e-05,75720.0,75707.0,0.00264147]
[1731018763034,8e-05,75720.0,75713.0,0.1]
[1731018764132,8e-05,75720.0,75706.0,0.0826]
[1731018764334,8e-05,75720.0,75707.0,0.00264147]
[1731018765450,8e-05,75720.0,75707.0,0.10264147]
[1731018765646,0.000912,75720.0,75706.0,0.0826]
[1731018765886,0.09892163,75717.0,75707.0,0.1]
[1731018766720,0.077,75719.0,75707.0,0.1]
[1731018768497,0.01221896,75718.0,75707.0,0.1]
[1731018768728,0.077,75719.0,75707.0,0.1]
[1731018768915,0.01221894,75718.0,75707.0,0.1]
[1731018769216,0.077,75719.0,75707.0,0.1]
[1731018769351,0.01222179,75718.0,75707.0,0.1]
[1731018769590,0.077,75719.0,75707.0,0.1]
[1731018769777,0.01222186,75718.0,75707.0,0.1]
[1731018770005,0.077,75719.0,75707.0,0.1]
[1731018770199,0.01222184,75718.0,75707.0,0.1]
[1731018770336,0.077,75719.0,75707.0,0.1]
[1731018770562,0.0122245,75718.0,75707.0,0.1]
[1731018770765,0.0122245,75717.0,75707.0,0.1]
[1731018771022,0.077,75719.0,75707.0,0.1]
[1731018771185,0.01222452,75718.0,75707.0,0.1]
[1731018771413,0.01222452,75717.0,75707.0,0.1]
[1731018771615,0.077,75719.0,75707.0,0.1]
[1731018771616,0.01222452,75716.0,75707.0,0.1]
[1731018771850,0.077,75719.0,75707.0,0.1]
[1731018772018,0.01222715,75718.0,75707.0,0.1]
[1731018772234,0.01222715,75717.0,75707.0,0.1]
[1731018772442,0.077,75719.0,75707.0,0.1]
[1731018772687,0.0765,75719.0,75707.0,0.1]
[1731018772837,0.01222765,75716.0,75707.0,0.1]
[1731018774477,0.000912,75720.0,75707.0,0.1]
[1731018774704,0.01223122,75719.0,75707.0,0.1]
[1731018774905,0.000912,75720.0,75707.0,0.1799]
[1731018775169,0.01223119,75719.0,75707.0,0.1799]
[1731018775305,0.000912,75720.0,75707.0,0.1799]
[1731018775478,0.01223382,75719.0,75707.0,0.1799]
[1731018775685,0.000912,75720.0,75707.0,0.1799]
[1731018775907,0.0122339,75719.0,75707.0,0.1799]
[1731018776103,0.000912,75720.0,75707.0,0.1799]
[1731018776431,0.01223742,75719.0,75707.0,0.1799]
[1731018776628,0.01223742,75718.0,75707.0,0.1799]
[1731018776809,0.01223742,75717.0,75707.0,0.1799]
[1731018777020,0.01223742,75717.0,75705.0,0.0136357]
[1731018777021,0.09892163,75711.0,75705.0,0.0136357]
[1731018777217,0.09892163,75711.0,75706.0,0.19868997]
[1731018777218,0.08763617,75710.0,75706.0,0.19868997]
[1731018777421,0.01223617,75709.0,75705.0,0.0136357]
[1731018777653,0.09892163,75707.0,75705.0,0.0136357]
[1731018778058,0.023,75709.0,75705.0,0.0136357]
[1731018778660,0.023,75707.0,75705.0,0.0136357]
[1731018778878,0.023,75709.0,75705.0,0.0136357]
[1731018779107,0.09892163,75706.0,75705.0,0.0136357]
[1731018779281,0.1341543,75706.0,75705.0,0.0136357]
[1731018779852,0.03523267,75706.0,75705.0,0.0136357]
[1731018780091,0.1341543,75706.0,75705.0,0.0136357]
[1731018780842,0.26639532,75706.0,75705.0,0.0136357]
[1731018781049,0.31249532,75706.0,75705.0,0.0136357]
[1731018781420,0.35152034,75706.0,75705.0,0.0136357]
[1731018781674,0.35151278,75706.0,75705.0,0.0136357]
[1731018782537,0.31248776,75706.0,75705.0,0.0136357]
[1731018782754,0.45288725,75706.0,75705.0,0.0136357]
[1731018784369,0.39428776,75706.0,75705.0,0.0136357]
[1731018785230,0.43334919,75706.0,75705.0,0.0136357]
[1731018785443,0.38206265,75706.0,75705.0,0.0136357]
[1731018785638,0.48098428,75706.0,75705.0,0.0136357]
[1731018785846,0.38206265,75706.0,75705.0,0.0136357]
[1731018786463,0.49318085,75706.0,75705.0,0.0136357]
[1731018786673,0.38206265,75706.0,75705.0,0.0136357]
[1731018787552,0.28314102,75706.0,75705.0,0.0136357]
[1731018787792,0.15524102,75706.0,75705.0,0.0136357]
[1731018787962,0.023,75707.0,75705.0,0.0136357]
[1731018788137,0.15524102,75707.0,75705.0,0.0136357]
[1731018789944,0.023,75707.0,75706.0,0.19868997]
[1731018790128,0.09892163,75717.0,75707.0,0.1775]
[1731018791084,0.09892163,75717.0,75707.0,0.0775]
[1731018791597,0.023,75716.0,75707.0,0.0775]
[1731018792754,0.023,75716.0,75709.0,0.1]
[1731018792972,0.09892163,75717.0,75709.0,0.1]
[1731018794013,0.09892163,75717.0,75709.0,0.1]
[1731018796989,0.09892163,75717.0,75709.0,0.099801]
[1731018800254,0.09892163,75713.0,75709.0,0.099801]
[1731018801298,0.09892163,75713.0,75707.0,0.0775]
[1731018802275,0.09892163,75713.0,75709.0,0.001664]
[1731018806642,0.09975363,75717.0,75709.0,0.001664]
[1731018808697,0.09975363,75717.0,75715.0,0.1]
[1731018808698,0.000832,75717.0,75715.0,0.1]
[1731018810174,0.000832,75717.0,75711.0,0.1]
[1731018828470,0.078,75715.0,75711.0,0.1]
[1731018828671,0.023,75711.0,75709.0,0.001664]
[1731018828890,0.023,75711.0,75710.0,0.29868997]
[1731018829345,0.023,75711.0,75710.0,0.1]
[1731018829565,0.02296,75711.0,75710.0,0.1]
[1731018830290,0.02296,75711.0,75709.0,0.001664]
[1731018831067,0.35986265,75710.0,75709.0,0.001664]
[1731018831426,0.1637,75706.0,75705.0,0.0136357]
[1731018831647,0.62756291,75706.0,75705.0,0.0136357]
[1731018831893,0.74601133,75706.0,75705.0,0.0136357]
[1731018832113,0.74924301,75706.0,75705.0,0.000832]
[1731018832331,0.028,75699.0,75698.0,0.19868997]
[1731018832568,0.57216776,75699.0,75698.0,0.19868997]
[1731018832792,0.57216776,75699.0,75687.0,0.19868997]
[1731018832793,0.023,75693.0,75687.0,0.19868997]
[1731018832993,0.09892163,75688.0,75687.0,0.19868997]
[1731018833195,0.25416265,75688.0,75687.0,0.19868997]
[1731018833429,0.25416265,75688.0,75687.0,0.21137656]
[1731018833636,0.25416265,75688.0,75687.0,0.01268659]
[1731018834072,0.023,75687.0,75685.0,0.000832]
[1731018834275,0.13224102,75686.0,75685.0,0.000832]
[1731018834403,0.15524102,75686.0,75685.0,0.000832]
[1731018834820,0.23614102,75686.0,75685.0,0.000832]
[1731018835033,0.23614102,75686.0,75685.0,0.01312918]
[1731018845136,0.28284102,75686.0,75685.0,0.01312918]
[1731018845802,0.38176265,75686.0,75685.0,0.01312918]
[1731018848081,0.38676265,75686.0,75685.0,0.01312918]
[1731018848709,0.48568428,75686.0,75685.0,0.01312918]
[1731018848904,0.149,75676.0,75674.0,0.1]
[1731018849100,0.023,75674.0,75673.0,0.19868997]
[1731018849308,0.15524102,75674.0,75673.0,0.19868997]
[1731018849513,0.023,75671.0,75663.0,0.24868997]
[1731018849722,0.09892163,75665.0,75663.0,0.24868997]
[1731018849894,0.25416265,75665.0,75663.0,0.24868997]
[1731018850095,0.25416265,75665.0,75663.0,0.05]
[1731018850404,0.43458428,75665.0,75664.0,0.01318968]
[1731018850601,0.38386265,75665.0,75664.0,0.000832]
[1731018851523,0.48278428,75665.0,75664.0,0.000832]
[1731018852317,0.38386265,75665.0,75664.0,0.000832]
[1731018853816,0.48278428,75665.0,75664.0,0.000832]
[1731018854928,0.56542194,75665.0,75664.0,0.000832]
[1731018855617,0.48278428,75665.0,75664.0,0.000832]
[1731018855815,0.49278428,75665.0,75664.0,0.000832]
[1731018856443,0.50494586,75665.0,75664.0,0.000832]
[1731018856653,1.20024586,75665.0,75664.0,0.000832]
[1731018857692,0.005,75657.0,75656.0,0.19868997]
[1731018857894,0.25916265,75657.0,75656.0,0.19868997]
[1731018858107,0.27132423,75657.0,75656.0,0.19868997]
[1731018858319,0.005,75655.0,75648.0,0.000832]
[1731018858537,0.12192163,75652.0,75648.0,0.000832]
[1731018858761,0.26632423,75652.0,75651.0,0.01314181]
[1731018858974,0.27132423,75652.0,75651.0,0.000832]
[1731018859222,0.39602423,75652.0,75651.0,0.000832]
[1731018863723,0.53223136,75652.0,75651.0,0.000832]
[1731018864358,0.50494586,75652.0,75651.0,0.000832]
[1731018867855,1.20024586,75652.0,75651.0,0.000832]
[1731018870324,0.005,75639.0,75636.0,0.1]
[1731018870561,0.25416265,75638.0,75636.0,0.1]
[1731018871182,0.25416265,75638.0,75631.0,0.001496]
[1731018872690,0.25416265,75638.0,75634.0,0.100832]
[1731018873129,0.25416265,75638.0,75634.0,0.000832]
[1731018873298,0.25416265,75638.0,75636.0,0.001666]
[1731018875206,0.93874102,75637.0,75636.0,0.001666]
[1731018875577,0.96165177,75637.0,75636.0,0.001666]
[1731018877177,0.96165356,75637.0,75636.0,0.001666]
[1731018880768,0.26635356,75637.0,75636.0,0.001666]
[1731018881520,0.27135356,75637.0,75636.0,0.001666]
[1731018882144,0.35808428,75637.0,75636.0,0.001666]
[1731018882395,0.25916265,75637.0,75636.0,0.001666]
[1731018882784,0.35808428,75637.0,75636.0,0.001666]
[1731018884423,0.25916265,75637.0,75636.0,0.001666]
[1731018884872,0.35808428,75637.0,75636.0,0.001666]
[1731018885197,0.005,75635.0,75632.0,0.09011041]
[1731018885408,0.22084326,75633.0,75632.0,0.09011041]
[1731018885617,0.35308428,75633.0,75632.0,0.09011041]
[1731018886017,0.36529655,75633.0,75632.0,0.09011041]
[1731018886509,0.36529655,75633.0,75631.0,0.001496]
[1731018886709,0.16745329,75632.0,75631.0,0.001496]
[1731018887320,0.15524102,75632.0,75631.0,0.001496]
[1731018887540,0.16745958,75632.0,75631.0,0.001496]
[1731018888148,0.16745958,75632.0,75631.0,0.01694953]
[1731018890185,0.17245958,75632.0,75631.0,0.01694953]
[1731018890380,0.16745958,75632.0,75631.0,0.01694953]
[1731018893881,0.1674601,75632.0,75631.0,0.01694953]
[1731018894681,0.26638173,75632.0,75631.0,0.01694953]
[1731018897045,0.27138173,75632.0,75631.0,0.01694953]
[1731018901422,0.32997493,75632.0,75631.0,0.01694953]
[1731018902656,0.27138173,75632.0,75631.0,0.01694953]
[1731018903067,0.27139214,75632.0,75631.0,0.01694953]
[1731018903398,0.2713944,75632.0,75631.0,0.01694953]
[1731018903809,0.31673995,75632.0,75631.0,0.01694953]
[1731018904010,0.2713944,75632.0,75631.0,0.01694953]
[1731018904204,0.25916265,75632.0,75631.0,0.01694953]
[1731018905344,0.31778543,75632.0,75631.0,0.01694953]
[1731018906119,0.005,75630.0,75622.0,0.101496]
[1731018906323,0.09892163,75623.0,75622.0,0.101496]
[1731018906541,0.25416265,75623.0,75622.0,0.11711299]
[1731018906918,0.25416265,75623.0,75622.0,0.01711299]
[1731018907133,0.26639726,75623.0,75622.0,0.01711299]
[1731018916808,0.05862101,75632.0,75622.0,0.24291299]
[1731018917050,0.000833,75645.0,75634.0,0.0764]
[1731018917269,0.000833,75645.0,75635.0,0.04974628]
[1731018917491,0.000833,75645.0,75636.0,0.1]
[1731018917700,0.000833,75645.0,75635.0,0.15391505]
[1731018917701,0.000833,75645.0,75638.0,0.1764]
[1731018917941,0.000833,75645.0,75639.0,0.00559342]
[1731018918163,0.000833,75645.0,75638.0,0.1764]
[1731018919001,0.000833,75645.0,75638.0,0.0764]
[1731018919304,0.000833,75645.0,75640.0,0.1]
[1731018921479,0.000833,75645.0,75640.0,0.09883492]
[1731018922527,0.023,75657.0,75640.0,0.09883492]
[1731018922741,0.023,75655.0,75640.0,0.09883492]
[1731018922957,0.0019828,75660.0,75647.0,0.19868997]
[1731018923162,0.0019828,75660.0,75641.0,0.0816]
[1731018923163,0.0019828,75660.0,75649.0,0.0486]
[1731018923380,0.01,75680.0,75651.0,0.1]
[1731018923581,0.20368997,75682.0,75653.0,0.19892163]
[1731018923802,0.09892163,75676.0,75655.0,0.0816]
[1731018924005,0.0769,75689.0,75659.0,0.1]
[1731018924211,0.09892163,75683.0,75661.0,0.1]
[1731018924372,0.005,75689.0,75661.0,0.1]
[1731018924373,0.09892163,75678.0,75661.0,0.1]
[1731018924782,0.09892163,75678.0,75661.0,0.11277944]
[1731018925026,0.09892163,75678.0,75661.0,0.1]
[1731018925403,0.15408991,75682.0,75661.0,0.1]
[1731018926480,0.15408991,75682.0,75662.0,0.01277944]
[1731018927552,0.15408991,75682.0,75662.0,0.01190144]
[1731018928207,0.15408991,75682.0,75663.0,0.00264296]
[1731018928628,0.15408991,75682.0,75662.0,0.01190144]
[1731018928840,0.15408991,75682.0,75663.0,0.00264296]
[1731018929466,0.15408991,75682.0,75664.0,0.01356558]
[1731018929683,0.15408991,75682.0,75664.0,0.01620854]
[1731018929885,0.15408991,75682.0,75661.0,0.1]
[1731018930947,0.15408991,75682.0,75661.0,0.11356558]
[1731018931872,0.15408991,75682.0,75662.0,0.00347001]
[1731018932603,0.15408991,75682.0,75663.0,0.00264296]
[1731018932823,0.15408991,75682.0,75664.0,0.00286476]
[1731018933622,0.15408991,75682.0,75661.0,0.1]
[1731018933827,0.15408991,75682.0,75664.0,0.00310349]
[1731018934079,0.15408991,75682.0,75661.0,0.1]
[1731018934281,0.15408991,75682.0,75664.0,0.00312416]
[1731018934435,0.15408991,75682.0,75661.0,0.1]
[1731018934636,0.15408991,75682.0,75664.0,0.00312416]
[1731018934841,0.15408991,75682.0,75661.0,0.1]
[1731018935093,0.15408991,75682.0,75664.0,0.00312416]
[1731018935292,0.15408991,75682.0,75661.0,0.1]
[1731018935486,0.15408991,75682.0,75664.0,0.00286476]
[1731018935685,0.15408991,75682.0,75661.0,0.1]
[1731018935909,0.15408991,75682.0,75664.0,0.00286476]
[1731018936127,0.15408991,75682.0,75661.0,0.1]
[1731018936369,0.15408991,75682.0,75664.0,0.00398401]
[1731018936516,0.15408991,75682.0,75662.0,0.00264296]
[1731018936718,0.15408991,75682.0,75664.0,0.00398401]
[1731018936929,0.15408991,75682.0,75663.0,0.00398524]
[1731018937112,0.15408991,75682.0,75664.0,0.00665453]
[1731018937528,0.15408991,75682.0,75664.0,0.00401157]
[1731018937735,0.15408991,75682.0,75661.0,0.1]
[1731018937921,0.15408991,75682.0,75662.0,0.00398647]
[1731018941427,0.15408991,75682.0,75663.0,0.00264291]
[1731018941635,0.15408991,75682.0,75662.0,0.00398647]
[1731018941845,0.15408991,75682.0,75663.0,0.00398524]
[1731018942232,0.15408991,75682.0,75664.0,0.00398401]
[1731018942462,0.15408991,75682.0,75661.0,0.1]
[1731018942672,0.15408991,75682.0,75664.0,0.00398401]
[1731018942883,0.15408991,75682.0,75661.0,0.1]
[1731018943091,0.15408991,75682.0,75664.0,0.00398401]
[1731018943295,0.15408991,75682.0,75661.0,0.1]
[1731018943449,0.15408991,75682.0,75664.0,0.00398401]
[1731018943659,0.15408991,75682.0,75661.0,0.100833]
[1731018943864,0.15408991,75682.0,75664.0,0.00398401]
[1731018944037,0.15408991,75682.0,75661.0,0.100833]
[1731018944255,0.15408991,75682.0,75664.0,0.00358313]
[1731018944460,0.15408991,75682.0,75661.0,0.100833]
[1731018944675,0.0806,75684.0,75662.0,0.00264291]
[1731018944896,0.01218454,75683.0,75662.0,0.00625113]
[1731018945037,0.15408991,75687.0,75662.0,0.00625113]
[1731018945233,0.0121846,75686.0,75662.0,0.00360822]
[1731018945511,0.0121846,75685.0,75662.0,0.00360822]
[1731018945715,0.0121846,75684.0,75662.0,0.00360822]
[1731018945926,0.0121846,75683.0,75662.0,0.00360822]
[1731018946088,0.0121846,75682.0,75662.0,0.00360822]
[1731018946298,0.0121846,75681.0,75662.0,0.00360822]
[1731018946500,0.0121846,75680.0,75662.0,0.00360822]
[1731018946680,0.15408991,75687.0,75662.0,0.00360822]
[1731018946681,0.0121846,75679.0,75662.0,0.00360822]
[1731018946881,0.0121846,75678.0,75662.0,0.00360822]
[1731018947137,0.0121846,75677.0,75662.0,0.00360822]
[1731018947342,0.0121846,75676.0,75662.0,0.00360822]
[1731018947551,0.0121846,75675.0,75662.0,0.00360822]
[1731018947758,0.09891237,75680.0,75663.0,0.00264291]
[1731018947903,0.01221799,75679.0,75663.0,0.00264291]
[1731018948109,0.01221799,75678.0,75664.0,0.00360601]
[1731018948311,0.01221799,75677.0,75664.0,0.00360601]
[1731018948640,0.09891237,75680.0,75664.0,0.00360601]
[1731018949194,0.09891237,75680.0,75662.0,0.00264291]
[1731018949368,0.09891237,75680.0,75664.0,0.00354501]
[1731018949635,0.09891237,75680.0,75663.0,0.00354611]
[1731018949828,0.23752242,75715.0,75661.0,0.145793]
[1731018949829,0.01956454,75679.0,75664.0,0.22855738]
[1731018949978,0.09891237,75690.0,75664.0,0.33732502]
[1731018950200,0.01956514,75689.0,75664.0,0.3382216]
[1731018950430,0.23048332,75688.0,75664.0,0.3382216]
[1731018950593,0.01956514,75687.0,75664.0,0.3382216]
[1731018950793,0.03179335,75686.0,75664.0,0.3382216]
[1731018950990,0.03179335,75685.0,75664.0,0.3382216]
[1731018951226,0.03179335,75684.0,75664.0,0.3382216]
[1731018951437,0.03179335,75683.0,75664.0,0.3382216]
[1731018951649,0.03179335,75682.0,75664.0,0.3382216]
[1731018951847,0.03179335,75681.0,75664.0,0.3382216]
[1731018952060,0.03179335,75680.0,75664.0,0.3382216]
[1731018952345,0.01960934,75679.0,75664.0,0.3482216]
[1731018952713,0.19868997,75688.0,75664.0,0.3482216]
[1731018952916,0.03186586,75687.0,75664.0,0.3482216]
[1731018953143,0.03186586,75686.0,75664.0,0.3482216]
[1731018953570,0.03186586,75685.0,75664.0,0.3482216]
[1731018953782,0.03186586,75684.0,75664.0,0.3482216]
[1731018954015,0.03186586,75683.0,75665.0,0.1]
[1731018954225,0.19868997,75688.0,75665.0,0.1]
[1731018954226,0.02451674,75682.0,75666.0,0.00264263]
[1731018954435,0.02451674,75681.0,75667.0,0.1]
[1731018954648,0.02451674,75680.0,75668.0,0.00264264]